fUST/lending_fUST_20251109
["ID","MTS","AMOUNT","RATE_DAILY","PERIOD"]
[393463763,1762688750767,-203.67161941,0.00026513,2]
[393463764,1762688750787,-168.664,0.00026513,13]
[393463765,1762688750806,-101444.58202581,0.00026514,2]
[393463801,1762688850090,-381.6380871,0.00026414,2]
[393463910,1762689031963,-266.59554031,0.00025773,2]
[393463911,1762689031973,-300.0,0.00026513,2]
[393463912,1762689031983,-597.0,0.00026513,2]
[393463913,1762689031992,-149811.534831,0.00026514,2]
[393463914,1762689032002,-751.9,0.00026514,3]
[393463915,1762689032011,-685000.0,0.00026524,2]
[393463916,1762689032128,-503.12613602,0.00026573,2]
[393463917,1762689032139,-509.13362984,0.00026573,2]
[393463918,1762689032149,-500.0,0.00026573,2]
[393463919,1762689032160,-583.84105205,0.00026573,2]
[393463920,1762689032172,-500.0,0.00026573,2]
[393463921,1762689032182,-509.04784384,0.00026573,2]
[393463922,1762689032192,-500.0,0.00026573,2]
[393463923,1762689032202,-500.0,0.00026573,2]
[393463924,1762689032212,-190.46769985,0.00026632,2]
[393463925,1762689032222,-259.343732,0.00026676,2]
[393463926,1762689032232,-1340.41,0.000267,7]
[393463927,1762689032242,-159.12,0.000268,2]
[393463928,1762689032250,-500.16307664,0.00027121,2]
[393463929,1762689032260,-258.0,0.00027623,2]
[393463930,1762689032270,-168.0,0.00028171,2]
[393463931,1762689032279,-743.38,0.000282,2]
[393463932,1762689032290,-358.35,0.0002825,2]
[393463933,1762689032300,-168.0,0.00028815,2]
[393463934,1762689032310,-5000.0,0.00029403,2]
[393463935,1762689032318,-285.0,0.00029623,2]
[393463936,1762689032327,-413.0,0.00029642,2]
[393463937,1762689032337,-239.48137462,0.00030478,2]
[393463938,1762689032347,-716.7,0.00030818,2]
[393463939,1762689032358,-5618.93833041,0.0003101,3]
[393463940,1762689032368,-312.0,0.00031623,2]
[393463941,1762689032378,-2154.71286458,0.00031672,2]
[393463942,1762689032387,-413.0,0.00032642,2]
[393463943,1762689032397,-1000.0,0.00032876,2]
[393463944,1762689032405,-1000.0,0.00032876,2]
[393463945,1762689032414,-500.0,0.00032876,2]
[393463946,1762689032423,-250.0,0.00033,7]
[393463947,1762689032433,-11523.9642178,0.0003314,2]
[393463948,1762689032444,-573.39,0.0003315,14]
[393463949,1762689032453,-259.343732,0.00033165,2]
[393463950,1762689032463,-171.22559643,0.000332,117]
[393463951,1762689032472,-500.0,0.00033356,7]
[393463952,1762689032482,-1075.05,0.00033386,2]
[393463953,1762689032491,-342.84296575,0.00033414,2]
[393463954,1762689032501,-153.97528019,0.00033414,2]
[393463955,1762689032510,-1000.0,0.00033424,2]
[393463956,1762689032519,-1000.0,0.00033424,2]
[393463957,1762689032529,-500.0,0.00033424,2]
[393463958,1762689032538,-279.97391736,0.00033623,120]
[393463959,1762689032549,-573.39,0.00033698,15]
[393463960,1762689032558,-817.917277,0.00033802,2]
[393463961,1762689032568,-1000.0,0.00033972,2]
[393463962,1762689032578,-1000.0,0.00033972,2]
[393463963,1762689032587,-500.0,0.00033972,2]
[393463964,1762689032596,-250.0,0.00034,7]
[393463965,1762689032607,-573.39,0.00034246,16]
[393463966,1762689032616,-1000.0,0.0003452,2]
[393463967,1762689032626,-1000.0,0.0003452,2]
[393463968,1762689032635,-500.0,0.0003452,2]
[393463969,1762689032644,-573.39,0.00034794,17]
[393463970,1762689032653,-2000.0,0.00034902,30]
[393463971,1762689032662,-2000.0,0.00034903,30]
[393463972,1762689032671,-500.0,0.00034973,5]
[393463973,1762689032680,-503.76964642,0.00034973,5]
[393463974,1762689032690,-500.0,0.0003499,30]
[393463975,1762689032699,-507.45291353,0.0003499,30]
[393463976,1762689032708,-34571.8926534,0.0003499,2]
[393463977,1762689032717,-2000.0,0.00034999,5]
[393463978,1762689032726,-2000.0,0.00034999,5]
[393463979,1762689032735,-2000.0,0.00034999,5]
[393463980,1762689032746,-2000.0,0.00034999,5]
[393463981,1762689032762,-22801.14751581,0.00035,5]
[393463982,1762689032775,-26507.52540669,0.00035,5]
[393464014,1762689037887,-511.5112,0.00035,5]
[393464017,1762689037899,-1868.35163947,0.00035,5]
[393464019,1762689037910,-510.44057546,0.00035,5]
[393464025,1762689037958,-42.4042319,0.00035,5]
[393464027,1762689037969,-1226.17148823,0.00035,5]
[393464471,1762689043272,-452.73493593,0.00035,5]
[393464474,1762689043600,-13756.77478886,0.00035,5]
[393464574,1762689046278,-12895.34711712,0.00035,5]
[393466017,1762689446447,1000.0,0.00036944,60]
[393466019,1762689720045,500.0,0.00036958,60]
[393466020,1762689720242,500.0,0.00036958,60]
[393466021,1762689720474,500.0,0.00036958,60]
[393466022,1762689720764,500.0,0.00036958,60]
[393466023,1762689721029,500.0,0.00036958,60]
[393466024,1762689721267,500.0,0.00036958,60]
[393466025,1762689721507,500.0,0.00036958,60]
[393466026,1762689721742,500.0,0.00036958,60]
[393466027,1762689722010,500.0,0.00036958,60]
[393466028,1762689722255,500.0,0.00036958,60]
[393466029,1762689722491,595.91599425,0.00036958,60]
[393466030,1762689837324,86165.61552554,0.000175,2]
[393466031,1762689837349,143862.38447446,0.000175,2]
[393466032,1762690004177,-150.0,0.00025274,2]
[393466033,1762690004196,-204.36752328,0.00025344,2]
[393466102,1762690232179,-354.36752328,0.00024953,4]
[393466103,1762690232189,-252.656493,0.00025327,2]
[393466104,1762690232200,-60.36465025,0.00025344,2]
[393466105,1762690232209,-300.0,0.00025989,2]
[393466106,1762690232218,-18139.16264351,0.0002599,2]
[393466107,1762690232227,-585.04453172,0.00026372,2]
[393466108,1762690232237,-500.0,0.00026402,2]
[393466109,1762690232246,-312.3446931,0.00026402,2]
[393466110,1762690232255,-500.0,0.00026402,2]
[393466111,1762690232264,-273.75408832,0.00026402,2]
[393466112,1762690232274,-500.0,0.00026402,2]
[393466113,1762690232283,-500.0,0.00026402,2]
[393466114,1762690232293,-500.0,0.00026402,2]
[393466116,1762690232302,-500.0,0.00026402,2]
[393466118,1762690232311,-458.13644464,0.00026402,2]
[393466120,1762690232321,-500.0,0.00026402,2]
[393466121,1762690232330,-500.0,0.00026402,2]
[393466122,1762690232341,-500.0,0.00026402,2]
[393466123,1762690232350,-500.0,0.00026402,2]
[393466124,1762690232359,-500.0,0.00026402,2]
[393466125,1762690232369,-500.0,0.00026402,2]
[393466126,1762690232378,-500.0,0.00026402,2]
[393466127,1762690232387,-500.0,0.00026402,2]
[393466128,1762690232396,-500.0,0.00026402,2]
[393466129,1762690232405,-500.0,0.00026402,2]
[393466130,1762690232414,-500.0,0.00026402,2]
[393466131,1762690232423,-500.0,0.00026402,2]
[393466132,1762690232432,-500.0,0.00026402,2]
[393466133,1762690232441,-500.0,0.00026402,2]
[393466134,1762690232451,-500.0,0.00026402,2]
[393466135,1762690232461,-500.0,0.00026402,2]
[393466136,1762690232470,-500.0,0.00026402,2]
[393466137,1762690232480,-500.0,0.00026402,2]
[393466139,1762690232489,-500.0,0.00026402,2]
[393466141,1762690232498,-500.0,0.00026402,2]
[393466143,1762690232507,-500.0,0.00026402,2]
[393466145,1762690232516,-500.0,0.00026402,2]
[393466147,1762690232526,-500.0,0.00026402,2]
[393466149,1762690232535,-592.81137418,0.00026402,2]
[393466151,1762690232544,-500.0,0.00026402,2]
[393466152,1762690232553,-500.0,0.00026402,2]
[393466153,1762690232562,-500.0,0.00026402,2]
[393466154,1762690232571,-500.0,0.00026402,2]
[393466155,1762690232580,-500.0,0.00026402,2]
[393466156,1762690232589,-500.0,0.00026402,2]
[393466157,1762690232599,-500.0,0.00026402,2]
[393466158,1762690232609,-500.0,0.00026402,2]
[393466159,1762690232619,-500.0,0.00026402,2]
[393466160,1762690232628,-500.0,0.00026402,2]
[393466161,1762690232637,-500.0,0.00026402,2]
[393466162,1762690232646,-500.0,0.00026402,2]
[393466163,1762690232656,-500.0,0.00026402,2]
[393466164,1762690232665,-500.0,0.00026402,2]
[393466165,1762690232675,-500.0,0.00026402,2]
[393466166,1762690232684,-500.0,0.00026402,2]
[393466167,1762690232694,-500.0,0.00026402,2]
[393466168,1762690232703,-500.0,0.00026402,2]
[393466169,1762690232712,-500.0,0.00026402,2]
[393466170,1762690232722,-500.0,0.00026402,2]
[393466171,1762690232731,-500.0,0.00026402,2]
[393466172,1762690232740,-500.0,0.00026402,2]
[393466173,1762690232751,-500.0,0.00026402,2]
[393466174,1762690232761,-500.0,0.00026402,2]
[393466175,1762690232771,-500.0,0.00026402,2]
[393466176,1762690232781,-500.0,0.00026402,2]
[393466177,1762690232791,-500.0,0.00026402,2]
[393466178,1762690232800,-500.0,0.00026402,2]
[393466179,1762690232810,-500.0,0.00026402,2]
[393466180,1762690232820,-500.0,0.00026402,2]
[393466181,1762690232830,-500.0,0.00026402,2]
[393466182,1762690232842,-500.0,0.00026402,2]
[393466183,1762690232851,-200.0,0.00026402,2]
[393466184,1762690232861,-165.571,0.00026403,13]
[393466185,1762690232871,-262.2601274,0.00026403,2]
[393466186,1762690232881,-360.14,0.00026403,3]
[393466187,1762690232890,-23554.66602522,0.00026403,2]
[393466188,1762690232903,-669.45463248,0.00026403,2]
[393466189,1762690232912,-194.40096593,0.00026412,2]
[393466190,1762690232922,-456718.30552275,0.00026413,2]
[393466191,1762690232933,-36100.36698503,0.00026413,2]
[393466192,1762690232944,-49301.58296152,0.00026413,2]
[393466227,1762690238204,-5892.29144451,0.00026413,2]
[393466229,1762690238216,-1382.8095471,0.00026413,2]
[393466231,1762690238227,-15619.73589633,0.00026413,2]
[393466233,1762690238239,-3682.71679036,0.00026413,2]
[393466235,1762690238251,-70409.74614381,0.00026413,2]
[393466238,1762690238266,-314.90948172,0.00026413,2]
[393466344,1762690240386,-45577.53522687,0.00026413,2]
[393466345,1762690240396,-422.39679512,0.00026473,2]
[393466346,1762690240405,-500.0,0.00026473,2]
[393466347,1762690240415,-506.41275823,0.00026473,2]
[393466348,1762690240424,-1730.29433269,0.0002649,2]
[393466349,1762690240434,-1206.37,0.000265,7]
[393466350,1762690240444,-177.0,0.00027274,2]
[393466351,1762690240453,-330.98,0.00028278,2]
[393466352,1762690240463,-753.74,0.000283,2]
[393466353,1762690240472,-204.0,0.00029274,2]
[393466354,1762690240482,-410.0,0.00029733,2]
[393466355,1762690240491,-239.46,0.00030378,2]
[393466356,1762690240500,-150.0,0.00030478,2]
[393466357,1762690240510,-661.97,0.00030848,2]
[393466358,1762690240519,-231.0,0.00031274,2]
[393466359,1762690240529,-500.0,0.00032876,2]
[393466360,1762690240539,-477.82,0.0003315,14]
[393466361,1762690240548,-258.0,0.00033274,120]
[393466362,1762690240557,-500.0,0.00033356,7]
[393466363,1762690240568,-992.95,0.00033419,2]
[393466364,1762690240577,-500.0,0.00033424,2]
[393466365,1762690240586,-150.0,0.00033478,2]
[393466366,1762690240597,-477.82,0.00033698,15]
[393466367,1762690240607,-408.9586385,0.0003394,2]
[393466368,1762690240616,-500.0,0.00033972,2]
[393466369,1762690240626,-477.82,0.00034246,16]
[393466370,1762690240635,-500.0,0.0003452,2]
[393466371,1762690240645,-192.1389484,0.00034674,2]
[393466372,1762690240654,-477.82,0.00034794,17]
[393466373,1762690240664,-3460.58866538,0.0003499,2]
[393466374,1762690240673,-115788.62173289,0.00035,5]
[393466375,1762690240686,-17022.18566324,0.00035,5]
[393466427,1762690244726,-1940.55086211,0.00035,5]
[393466474,1762690246661,-177.87965779,0.00032458,2]
[393466475,1762690246670,-22401.0020727,0.00035,5]
[393466492,1762691229087,-225.952591,0.00023642,2]
[393466493,1762691229110,-211.05970949,0.00023909,2]
[393466494,1762691229133,-190.99782081,0.00024709,2]
[393466495,1762691229155,-35.64485871,0.00024953,2]
[393466503,1762691350092,-5048.55633725,0.00024,60]
[393466504,1762691350113,-11663.11103557,0.00024142,2]
[393466505,1762691353121,-99445.10006463,0.00024142,2]
[393466506,1762691356072,-14759.42453595,0.00024142,2]
[393466507,1762691356103,-3491.94911209,0.00024142,2]
[393466508,1762691401500,236.0,0.00019616,4]
[393466555,1762691432427,-671.02956399,0.00024649,2]
[393466558,1762691432440,-417.16503418,0.00024649,2]
[393466626,1762691438323,-111.80540183,0.00024649,2]
[393466627,1762691438333,-293.74461008,0.0002465,2]
[393466629,1762691438432,-8360.32426416,0.0002465,2]
[393466630,1762691438444,-418.66929077,0.00024703,4]
[393466631,1762691438455,-300.0,0.00024826,2]
[393466632,1762691438465,-300.0,0.00024827,2]
[393466633,1762691438476,-300.0,0.00024827,2]
[393466634,1762691438485,-300.0,0.00024827,2]
[393466635,1762691438495,-300.0,0.00024827,2]
[393466636,1762691438505,-1210.66841004,0.00024828,14]
[393466637,1762691438516,-877.69735421,0.00024953,2]
[393466638,1762691438526,-160.73417,0.00025394,2]
[393466639,1762691438535,-2404.59690275,0.0002599,2]
[393466640,1762691438545,-159.24073098,0.00026125,2]
[393466641,1762691438555,-500.0,0.00026158,2]
[393466642,1762691438565,-520.99307007,0.00026158,2]
[393466643,1762691438575,-361.48226406,0.00026158,2]
[393466644,1762691438585,-225.33964024,0.00026158,2]
[393466645,1762691438595,-500.0,0.00026158,2]
[393466646,1762691438605,-500.0,0.00026158,2]
[393466647,1762691438615,-500.0,0.00026158,2]
[393466648,1762691438626,-500.0,0.00026158,2]
[393466649,1762691438636,-500.0,0.00026158,2]
[393466650,1762691438646,-500.0,0.00026158,2]
[393466651,1762691438656,-500.0,0.00026158,2]
[393466652,1762691438666,-500.0,0.00026158,2]
[393466653,1762691438676,-500.0,0.00026158,2]
[393466654,1762691438686,-500.0,0.00026158,2]
[393466655,1762691438699,-500.0,0.00026158,2]
[393466656,1762691438709,-500.0,0.00026158,2]
[393466657,1762691438720,-500.0,0.00026158,2]
[393466658,1762691438730,-488.26022397,0.00026158,2]
[393466659,1762691438741,-500.0,0.00026158,2]
[393466660,1762691438750,-500.0,0.00026158,2]
[393466661,1762691438762,-500.0,0.00026158,2]
[393466662,1762691438772,-500.0,0.00026158,2]
[393466663,1762691438782,-500.0,0.00026158,2]
[393466664,1762691438791,-500.0,0.00026158,2]
[393466665,1762691438801,-500.0,0.00026158,2]
[393466666,1762691438811,-500.0,0.00026158,2]
[393466667,1762691438820,-500.0,0.00026158,2]
[393466668,1762691438830,-500.0,0.00026158,2]
[393466669,1762691438840,-500.0,0.00026158,2]
[393466670,1762691438850,-500.0,0.00026158,2]
[393466671,1762691438860,-500.0,0.00026158,2]
[393466672,1762691438870,-500.0,0.00026158,2]
[393466673,1762691438879,-500.0,0.00026158,2]
[393466674,1762691438890,-500.0,0.00026158,2]
[393466675,1762691438900,-500.0,0.00026158,2]
[393466676,1762691438909,-500.0,0.00026158,2]
[393466677,1762691438919,-500.0,0.00026158,2]
[393466678,1762691438928,-274.59184798,0.00026158,2]
[393466687,1762691440458,-225.40815202,0.00026158,2]
[393466688,1762691440468,-507.95327159,0.00026158,2]
[393466689,1762691440477,-500.0,0.00026158,2]
[393466690,1762691440486,-106.69074338,0.00026158,2]
[393466718,1762691443413,-393.30925662,0.00026158,2]
[393466720,1762691443422,-500.0,0.00026158,2]
[393466722,1762691443433,-500.0,0.00026158,2]
[393466724,1762691443443,-500.0,0.00026158,2]
[393466726,1762691443452,-500.0,0.00026158,2]
[393466728,1762691443462,-500.0,0.00026158,2]
[393466730,1762691443471,-500.0,0.00026158,2]
[393466732,1762691443481,-500.0,0.00026158,2]
[393466734,1762691443490,-500.0,0.00026158,2]
[393466736,1762691443500,-500.0,0.00026158,2]
[393466738,1762691443509,-500.0,0.00026158,2]
[393466740,1762691443519,-500.0,0.00026158,2]
[393466742,1762691443528,-500.0,0.00026158,2]
[393466744,1762691443537,-500.0,0.00026158,2]
[393466746,1762691443546,-95.34041068,0.00026158,2]
[393466815,1762691447036,-5000.0,0.00025896,2]
[393466816,1762691447047,-404.65958932,0.00026158,2]
[393466817,1762691447057,-500.0,0.00026158,2]
[393466818,1762691447067,-500.0,0.00026158,2]
[393466819,1762691447077,-500.0,0.00026158,2]
[393466820,1762691447087,-500.0,0.00026158,2]
[393466821,1762691447097,-500.0,0.00026158,2]
[393466822,1762691447107,-500.0,0.00026158,2]
[393466823,1762691447118,-500.0,0.00026158,2]
[393466824,1762691447127,-500.0,0.00026158,2]
[393466825,1762691447137,-269.95219218,0.00026158,2]
[393466826,1762691447146,-500.0,0.00026158,2]
[393466827,1762691447156,-500.0,0.00026158,2]
[393466828,1762691447166,-500.0,0.00026158,2]
[393466829,1762691447176,-500.0,0.00026158,2]
[393466830,1762691447185,-500.0,0.00026158,2]
[393466831,1762691447195,-500.0,0.00026158,2]
[393466832,1762691447205,-325.3882185,0.00026158,2]
[393466833,1762691447217,-174.6117815,0.00026158,2]
[393466834,1762691447226,-500.0,0.00026158,2]
[393466835,1762691447236,-500.0,0.00026158,2]
[393466836,1762691447246,-500.0,0.00026158,2]
[393466837,1762691447255,-500.0,0.00026158,2]
[393466838,1762691447265,-418.62792038,0.00026158,2]
[393466839,1762691447274,-14173.52011571,0.00026159,2]
[393466843,1762691510739,286.0,0.00022,2]
[393466844,1762691571487,305621.0,0.00036968,60]
[393466847,1762691706829,151.0,0.00037025,60]
[393466848,1762691706894,414.0,0.00037025,60]
[393466849,1762691706945,308.65861218,0.00037025,60]
[393466850,1762691707003,151.0,0.00037025,60]
[393466851,1762691707465,151.0,0.00037025,60]
[393466852,1762691707500,151.0,0.00037025,60]
[393466853,1762691707536,429.318,0.00037025,60]
[393466854,1762691707581,2000.0,0.00037025,60]
[393466855,1762691707618,156.587,0.00037025,60]
[393466856,1762691708126,156.587,0.00037025,60]
[393466857,1762691708167,445.202766,0.00037025,60]
[393466858,1762691708206,2000.0,0.00037025,60]
[393466859,1762691708315,156.587,0.00037025,60]
[393466860,1762691708812,156.587,0.00037025,60]
[393466861,1762691708852,2000.0,0.00037025,60]
[393466862,1762691708896,445.202766,0.00037025,60]
[393466863,1762691709435,2000.0,0.00037025,60]
[393466864,1762691709917,151.0,0.00037025,60]
[393466865,1762691710076,2000.0,0.00037025,60]
[393466866,1762691710138,151.0,0.00037025,60]
[393466867,1762691710544,151.0,0.00037025,60]
[393466868,1762691710682,2000.0,0.00037025,60]
[393466869,1762691710811,151.0,0.00037025,60]
[393466870,1762691710848,151.0,0.00037025,60]
[393466871,1762691711179,151.0,0.00037025,60]
[393466872,1762691711435,151.0,0.00037025,60]
[393466873,1762691711469,151.0,0.00037025,60]
[393466874,1762691711800,151.0,0.00037025,60]
[393466875,1762691711902,250.0,0.00037025,60]
[393466876,1762691712085,151.0,0.00037025,60]
[393466877,1762691712193,151.0,0.00037025,60]
[393466878,1762691712509,250.0,0.00037025,60]
[393466879,1762691712716,151.0,0.00037025,60]
[393466880,1762691712911,151.0,0.00037025,60]
[393466881,1762691713129,250.0,0.00037025,60]
[393466882,1762691713364,151.0,0.00037025,60]
[393466883,1762691713831,250.0,0.00037025,60]
[393466884,1762691715435,1888.0,0.00037025,60]
[393466885,1762691715718,151.0,0.00037025,60]
[393466886,1762691715882,258.957191,0.00013699,2]
[393466887,1762691716075,1888.0,0.00037025,60]
[393466888,1762691716476,156.587,0.00037025,60]
[393466889,1762691717062,250.0,0.00037025,60]
[393466890,1762691717138,156.587,0.00037025,60]
[393466891,1762691717688,250.0,0.00037025,60]
[393466892,1762691718338,250.0,0.00037025,60]
[393466893,1762691718941,250.0,0.00037025,60]
[393466894,1762691720125,250.0,0.00037025,60]
[393466896,1762691720753,250.0,0.00037025,60]
[393466899,1762692362368,658.0,0.00017501,2]
[393466900,1762692437204,-985.0,0.00020187,2]
[393466901,1762692437227,-97.7897386,0.00020187,2]
[393466902,1762692442081,-52.2102614,0.00020187,2]
[393466903,1762692442103,-258.957191,0.00020187,2]
[393466904,1762692442123,-258.0,0.00022187,2]
[393466905,1762692442144,-2017.05806259,0.00025865,2]
[393466906,1762692442163,-267.6399402,0.00025872,2]
[393466907,1762692442183,-1685.13555905,0.00025889,2]
[393466908,1762692447712,302.18,0.00017501,2]
[393466909,1762692449072,-337.45696907,0.00023642,2]
[393466910,1762692453155,-34.8319892,0.00023642,2]
[393466911,1762692453176,-272.11700336,0.0002563,2]
[393466912,1762692551089,-500.0,0.00024953,2]
[393466913,1762692551111,-4727.88299664,0.0002563,2]
[393466914,1762692551130,-267.63994019,0.0002591,2]
[393466915,1762692551150,-267.63994019,0.00025949,2]
[393466916,1762692551171,-627.64,0.00025961,10]
[393466917,1762692551190,-300.0,0.00025961,2]
[393466918,1762692551210,-6790.83641606,0.00025962,2]
[393466960,1762692632665,-519.77389413,0.00024953,4]
[393466962,1762692632676,-598.0,0.00024953,4]
[393466969,1762692632766,-504.33344603,0.00024953,4]
[393466971,1762692632778,-901.35642237,0.00024953,4]
[393466973,1762692632789,-685.397014,0.00024953,4]
[393466974,1762692632801,-275.37784631,0.00024953,4]
[393466975,1762692632812,-273.18360731,0.00024953,4]
[393466976,1762692632822,-480.0,0.0002596,2]
[393466977,1762692632831,-300.0,0.00025961,2]
[393466978,1762692632840,-170.0,0.00025961,2]
[393466979,1762692632850,-109.13207089,0.00025961,10]
[393466993,1762692638408,-413.89792911,0.00025961,10]
[393466994,1762692638418,-10394.40335124,0.00025962,2]
[393466996,1762692638429,-1088.03164545,0.00025962,2]
[393466998,1762692638439,-500.0,0.00025962,2]
[393466999,1762692638449,-8988.63012594,0.00025963,2]
[393467000,1762692638461,-435.0,0.00025963,2]
[393467001,1762692638473,-1197.45495219,0.00025963,2]
[393467002,1762692638486,-928.98345371,0.00025963,2]
[393467003,1762692638500,-1703.45085993,0.00025963,2]
[393467004,1762692638511,-1813.7756934,0.00025963,2]
[393467005,1762692638623,-315.47340738,0.00025963,2]
[393467006,1762692638641,-940.8800004,0.00025963,2]
[393467007,1762692638683,-120.30997095,0.00025963,2]
[393467013,1762692640657,-741.2813034,0.00025963,2]
[393467014,1762692640667,-698.7186966,0.00025963,2]
[393467017,1762692640679,-389.31294885,0.00025963,2]
[393467018,1762692640688,-139.57756222,0.0002597,2]
[393467019,1762692640762,-37.49521878,0.0002597,2]
[393467020,1762692640775,-108.65691567,0.0002597,2]
[393467021,1762692640784,-500.0,0.0002597,2]
[393467022,1762692640794,-502.08136424,0.0002597,2]
[393467023,1762692640804,-500.0,0.0002597,2]
[393467024,1762692640813,-500.0,0.0002597,2]
[393467025,1762692640823,-500.0,0.0002597,2]
[393467026,1762692640833,-603.61779246,0.0002597,2]
[393467027,1762692640844,-500.0,0.0002597,2]
[393467028,1762692640853,-500.0,0.0002597,2]
[393467029,1762692640862,-500.0,0.0002597,2]
[393467030,1762692640871,-500.0,0.0002597,2]
[393467031,1762692640880,-500.0,0.0002597,2]
[393467032,1762692640890,-500.0,0.0002597,2]
[393467033,1762692640899,-500.0,0.0002597,2]
[393467034,1762692640909,-500.0,0.0002597,2]
[393467035,1762692640918,-500.0,0.0002597,2]
[393467036,1762692640927,-500.0,0.0002597,2]
[393467037,1762692640936,-225.16376297,0.0002597,2]
[393467038,1762692640945,-500.0,0.0002597,2]
[393467039,1762692640955,-286.66774045,0.0002597,2]
[393467040,1762692640965,-500.0,0.0002597,2]
[393467041,1762692640977,-500.0,0.0002597,2]
[393467042,1762692640987,-500.0,0.0002597,2]
[393467043,1762692640996,-500.0,0.0002597,2]
[393467044,1762692641007,-500.0,0.0002597,2]
[393467045,1762692641016,-500.0,0.0002597,2]
[393467046,1762692641025,-500.0,0.0002597,2]
[393467047,1762692641035,-500.0,0.0002597,2]
[393467048,1762692641044,-271.66247101,0.0002597,2]
[393467049,1762692641054,-633.57100489,0.0002597,2]
[393467050,1762692641063,-500.0,0.0002597,2]
[393467051,1762692641073,-500.0,0.0002597,2]
[393467052,1762692641082,-315.32922263,0.0002597,2]
[393467053,1762692641091,-500.0,0.0002597,2]
[393467054,1762692641101,-500.0,0.0002597,2]
[393467055,1762692641111,-500.0,0.0002597,2]
[393467056,1762692641121,-500.0,0.0002597,2]
[393467057,1762692641131,-500.0,0.0002597,2]
[393467058,1762692641140,-500.0,0.0002597,2]
[393467059,1762692641150,-500.0,0.0002597,2]
[393467060,1762692641160,-500.0,0.0002597,2]
[393467061,1762692641170,-512.27289798,0.0002597,2]
[393467062,1762692641179,-500.0,0.0002597,2]
[393467063,1762692641190,-500.0,0.0002597,2]
[393467064,1762692641199,-500.0,0.0002597,2]
[393467065,1762692641209,-500.0,0.0002597,2]
[393467066,1762692641219,-500.0,0.0002597,2]
[393467067,1762692641228,-500.0,0.0002597,2]
[393467068,1762692641238,-500.0,0.0002597,2]
[393467069,1762692641248,-500.0,0.0002597,2]
[393467070,1762692641258,-500.0,0.0002597,2]
[393467071,1762692641268,-500.0,0.0002597,2]
[393467072,1762692641278,-500.0,0.0002597,2]
[393467073,1762692641287,-500.0,0.0002597,2]
[393467074,1762692641296,-500.0,0.0002597,2]
[393467075,1762692641306,-500.0,0.0002597,2]
[393467076,1762692641315,-500.0,0.0002597,2]
[393467077,1762692641325,-500.0,0.0002597,2]
[393467078,1762692641335,-500.0,0.0002597,2]
[393467079,1762692641344,-500.0,0.0002597,2]
[393467080,1762692641353,-500.0,0.0002597,2]
[393467081,1762692641362,-500.0,0.0002597,2]
[393467082,1762692641372,-500.0,0.0002597,2]
[393467083,1762692641381,-500.0,0.0002597,2]
[393467084,1762692641391,-500.0,0.0002597,2]
[393467085,1762692641400,-500.0,0.0002597,2]
[393467086,1762692641409,-500.0,0.0002597,2]
[393467087,1762692641418,-500.0,0.0002597,2]
[393467088,1762692641427,-500.0,0.0002597,2]